[Event "*** Titled Tuesday Blitz"]
[Site "Chess.com"]
[Date "2018.07.03"]
[Round "1"]
[White "djano"]
[Black "Durarbayli"]
[Result "1-0"]
[WhiteElo "2398"]
[BlackElo "2667"]
[TimeControl "180+2"]
[EndTime "13:10:34 PDT"]
[Termination "djano won by resignation"]

1. c4 {[%clk 0:02:59.2]} 1... c5 {[%clk 0:03:00]} 2. g3 {[%clk 0:02:58.1]} 2...
Nc6 {[%clk 0:03:00.7]} 3. Bg2 {[%clk 0:02:59]} 3... g6 {[%clk 0:03:02]} 4. e3
{[%clk 0:02:59.4]} 4... Bg7 {[%clk 0:03:02.1]} 5. Ne2 {[%clk 0:03:00.4]} 5... e5
{[%clk 0:03:02.2]} 6. Nbc3 {[%clk 0:03:00.6]} 6... Nge7 {[%clk 0:03:02.7]} 7.
O-O {[%clk 0:03:00.7]} 7... O-O {[%clk 0:03:03.3]} 8. Nd5 {[%clk 0:02:58.3]}
8... d6 {[%clk 0:03:03.3]} 9. b3 {[%clk 0:02:54.3]} 9... Nxd5 {[%clk 0:02:07.7]}
10. cxd5 {[%clk 0:02:53.2]} 10... Nb4 {[%clk 0:02:08.8]} 11. Bb2 {[%clk
0:02:45.8]} 11... Nd3 {[%clk 0:02:04.5]} 12. Bc3 {[%clk 0:02:45.2]} 12... b6
{[%clk 0:02:01.4]} 13. Qc2 {[%clk 0:02:30.9]} 13... Ba6 {[%clk 0:02:01.8]} 14.
Rfd1 {[%clk 0:02:19.3]} 14... Qf6 {[%clk 0:01:46.6]} 15. f4 {[%clk 0:02:12.6]}
15... Qf5 {[%clk 0:01:47.2]} 16. Nc1 {[%clk 0:02:00.2]} 16... Nxc1 {[%clk
0:01:40.9]} 17. Raxc1 {[%clk 0:01:58.8]} 17... Bd3 {[%clk 0:01:40.5]} 18. Qb2
{[%clk 0:01:58.6]} 18... Rfe8 {[%clk 0:01:37.7]} 19. Re1 {[%clk 0:01:52.2]}
19... Be4 {[%clk 0:01:30.6]} 20. d3 {[%clk 0:01:06.9]} 20... Bxg2 {[%clk
0:01:30.1]} 21. e4 {[%clk 0:01:08]} 21... Bxe4 {[%clk 0:01:28.6]} 22. dxe4
{[%clk 0:01:08.4]} 22... Qd7 {[%clk 0:01:24.8]} 23. Rf1 {[%clk 0:01:01.3]} 23...
Bh6 {[%clk 0:01:23.9]} 24. f5 {[%clk 0:01:00.2]} 24... Bxc1 {[%clk 0:00:44.3]}
25. Qxc1 {[%clk 0:01:02.1]} 25... Rf8 {[%clk 0:00:40.4]} 26. Qh6 {[%clk
0:00:51]} 26... f6 {[%clk 0:00:41.3]} 27. fxg6 {[%clk 0:00:50.7]} 27... Qg7
{[%clk 0:00:37.7]} 28. gxh7+ {[%clk 0:00:49.6]} 28... Qxh7 {[%clk 0:00:38.6]}
29. Qe3 {[%clk 0:00:49]} 29... Rf7 {[%clk 0:00:33.4]} 30. Rf5 {[%clk 0:00:48.9]}
30... Raf8 {[%clk 0:00:27.5]} 31. Bd2 {[%clk 0:00:48.2]} 31... Rg7 {[%clk
0:00:27.4]} 32. Qf3 {[%clk 0:00:47.3]} 32... Qg6 {[%clk 0:00:26.7]} 33. Kg2
{[%clk 0:00:47]} 33... Rff7 {[%clk 0:00:25.3]} 34. h3 {[%clk 0:00:47.4]} 34...
Kf8 {[%clk 0:00:25.8]} 35. g4 {[%clk 0:00:48.1]} 35... Ke7 {[%clk 0:00:23.3]}
36. Qe2 {[%clk 0:00:47.5]} 36... Kf8 {[%clk 0:00:18.6]} 37. Kh2 {[%clk
0:00:43.3]} 37... Kg8 {[%clk 0:00:19.8]} 38. Qf3 {[%clk 0:00:43.3]} 38... Rf8
{[%clk 0:00:20]} 39. a4 {[%clk 0:00:42.7]} 39... Rff7 {[%clk 0:00:21.2]} 40. Kg3
{[%clk 0:00:41.3]} 40... Rf8 {[%clk 0:00:22.6]} 41. h4 {[%clk 0:00:42.5]} 41...
Qe8 {[%clk 0:00:18.7]} 42. h5 {[%clk 0:00:42.5]} 42... Kh7 {[%clk 0:00:19.3]}
43. Qe3 {[%clk 0:00:42]} 43... Qd7 {[%clk 0:00:16.7]} 44. Qf3 {[%clk 0:00:39]}
44... b5 {[%clk 0:00:16.7]} 45. g5 {[%clk 0:00:31.3]} 45... bxa4 {[%clk
0:00:13.5]} 46. g6+ {[%clk 0:00:32.5]} 46... Kg8 {[%clk 0:00:14.4]} 47. Rxf6
{[%clk 0:00:32.4]} 47... Rxf6 {[%clk 0:00:11.2]} 48. Qxf6 {[%clk 0:00:34.3]}
48... Qe7 {[%clk 0:00:12.5]} 49. Qf5 {[%clk 0:00:34.1]} 49... a3 {[%clk
0:00:12.9]} 50. h6 {[%clk 0:00:31.6]} 50... a2 {[%clk 0:00:11.6]} 51. Bc3 {[%clk
0:00:29.6]} 51... Qd7 {[%clk 0:00:08.4]} 52. hxg7 {[%clk 0:00:22.5]} 52... Qxf5
{[%clk 0:00:08.6]} 53. exf5 {[%clk 0:00:22.7]} 53... Kxg7 {[%clk 0:00:10.5]} 54.
Kf3 {[%clk 0:00:22.2]} 54... Kf6 {[%clk 0:00:11.4]} 55. Ke4 {[%clk 0:00:23.2]}
55... a5 {[%clk 0:00:12.4]} 56. Bb2 {[%clk 0:00:21.6]} 56... Ke7 {[%clk
0:00:13]} 57. Kd3 {[%clk 0:00:19.7]} 57... Kf8 {[%clk 0:00:13.8]} 58. Kc4 {[%clk
0:00:20.7]} 58... e4 {[%clk 0:00:14]} 59. Kc3 {[%clk 0:00:21.2]} 59... Kg7
{[%clk 0:00:10.7]} 60. Kd2+ {[%clk 0:00:21.9]} 60... Kh6 {[%clk 0:00:11.4]} 61.
Ke3 {[%clk 0:00:22.7]} 61... a4 {[%clk 0:00:12.5]} 62. Kxe4 {[%clk 0:00:20.6]}
62... axb3 {[%clk 0:00:09.6]} 63. Kd3 {[%clk 0:00:20.8]} 1-0

[Event "*** Titled Tuesday Blitz"]
[Site "Chess.com"]
[Date "2018.07.03"]
[Round "1"]
[White "2Tilted"]
[Black "GMKrikor"]
[Result "1-0"]
[WhiteElo "2318"]
[BlackElo "2615"]
[TimeControl "180+2"]
[EndTime "13:10:52 PDT"]
[Termination "2Tilted won by resignation"]

1. d4 {[%clk 0:03:01.6]} 1... Nf6 {[%clk 0:02:52.1]} 2. Nf3 {[%clk 0:03:00.8]}
2... d5 {[%clk 0:02:50.7]} 3. c4 {[%clk 0:03:00.8]} 3... e6 {[%clk 0:02:48.3]}
4. g3 {[%clk 0:03:00.5]} 4... Bb4+ {[%clk 0:02:46]} 5. Bd2 {[%clk 0:02:59.6]}
5... a5 {[%clk 0:02:44.6]} 6. a3 {[%clk 0:02:40.8]} 6... Bxd2+ {[%clk
0:02:35.8]} 7. Nbxd2 {[%clk 0:02:42.7]} 7... O-O {[%clk 0:02:33.5]} 8. Bg2
{[%clk 0:02:43.3]} 8... a4 {[%clk 0:02:32.9]} 9. O-O {[%clk 0:02:42.4]} 9...
Nbd7 {[%clk 0:02:26.3]} 10. Qc2 {[%clk 0:02:34.8]} 10... Nb6 {[%clk 0:02:13.7]}
11. Rfd1 {[%clk 0:02:16]} 11... c6 {[%clk 0:01:59.1]} 12. Rac1 {[%clk
0:02:09.6]} 12... Qe7 {[%clk 0:01:37.9]} 13. e4 {[%clk 0:02:06.6]} 13... Rd8
{[%clk 0:01:35.2]} 14. e5 {[%clk 0:02:03.5]} 14... Ne8 {[%clk 0:01:32.5]} 15. c5
{[%clk 0:02:01.9]} 15... Nd7 {[%clk 0:01:33.6]} 16. h4 {[%clk 0:02:03]} 16... h6
{[%clk 0:01:33.3]} 17. Nb1 {[%clk 0:02:01.3]} 17... b6 {[%clk 0:01:27.5]} 18.
cxb6 {[%clk 0:01:57.4]} 18... Bb7 {[%clk 0:01:29]} 19. Ne1 {[%clk 0:01:43.8]}
19... Nxb6 {[%clk 0:01:23.1]} 20. Nd3 {[%clk 0:01:44.4]} 20... Rdc8 {[%clk
0:01:10.8]} 21. Nc5 {[%clk 0:01:44.9]} 21... Ba6 {[%clk 0:01:12.3]} 22. f4
{[%clk 0:01:18.1]} 22... Bb5 {[%clk 0:01:04]} 23. f5 {[%clk 0:01:16.3]} 23...
Nd7 {[%clk 0:01:02.8]} 24. fxe6 {[%clk 0:01:14.1]} 24... fxe6 {[%clk 0:01:02.2]}
25. Bh3 {[%clk 0:01:14.7]} 25... Nxc5 {[%clk 0:00:49.3]} 26. Qxc5 {[%clk
0:01:16.6]} 26... Rc7 {[%clk 0:00:42.6]} 27. Rd2 {[%clk 0:01:15.6]} 27... Bc4
{[%clk 0:00:34.6]} 28. Rf2 {[%clk 0:00:55.4]} 28... Rb8 {[%clk 0:00:30.1]} 29.
Nc3 {[%clk 0:00:49.9]} 29... Qxc5 {[%clk 0:00:23.8]} 30. Bxe6+ {[%clk
0:00:49.7]} 30... Kh7 {[%clk 0:00:25.4]} 31. dxc5 {[%clk 0:00:50.6]} 31... Re7
{[%clk 0:00:25.9]} 32. Bf5+ {[%clk 0:00:51.3]} 32... g6 {[%clk 0:00:26.6]} 33.
Bb1 {[%clk 0:00:39]} 33... Rxe5 {[%clk 0:00:24.1]} 34. Nxa4 {[%clk 0:00:29.5]}
34... Ng7 {[%clk 0:00:20.2]} 35. Nb6 {[%clk 0:00:28.5]} 35... Rbe8 {[%clk
0:00:14.8]} 36. Nxc4 {[%clk 0:00:26.5]} 36... dxc4 {[%clk 0:00:16.7]} 37. Rxc4
{[%clk 0:00:27.5]} 37... Nh5 {[%clk 0:00:17.8]} 38. Rc3 {[%clk 0:00:27]} 38...
Kg7 {[%clk 0:00:16.4]} 39. Bc2 {[%clk 0:00:23.8]} 39... Nf6 {[%clk 0:00:16.3]}
40. Bb3 {[%clk 0:00:20.3]} 40... R8e7 {[%clk 0:00:14.8]} 41. Rcc2 {[%clk
0:00:20.4]} 41... Ne4 {[%clk 0:00:15.5]} 42. Rg2 {[%clk 0:00:19.2]} 42... Nxc5
{[%clk 0:00:16.6]} 43. Bc4 {[%clk 0:00:19.1]} 43... Re1+ {[%clk 0:00:17]} 44.
Kh2 {[%clk 0:00:20.1]} 44... Ne4 {[%clk 0:00:16.8]} 45. Rce2 {[%clk 0:00:21.1]}
45... Nf6 {[%clk 0:00:17.6]} 46. Rxe1 {[%clk 0:00:21.3]} 46... Rxe1 {[%clk
0:00:19.5]} 47. Re2 {[%clk 0:00:22.8]} 47... Rc1 {[%clk 0:00:15.5]} 48. b3
{[%clk 0:00:23]} 48... h5 {[%clk 0:00:16.1]} 49. Re7+ {[%clk 0:00:23.7]} 49...
Kh6 {[%clk 0:00:17.6]} 50. Re6 {[%clk 0:00:24.6]} 50... Ng4+ {[%clk 0:00:18.8]}
51. Kg2 {[%clk 0:00:26]} 51... Rc2+ {[%clk 0:00:19.9]} 52. Kf3 {[%clk 0:00:27]}
52... Rc3+ {[%clk 0:00:13]} 53. Ke4 {[%clk 0:00:28.2]} 53... c5 {[%clk
0:00:09.6]} 54. Kd5 {[%clk 0:00:27.2]} 54... Rxg3 {[%clk 0:00:10.2]} 55. Kxc5
{[%clk 0:00:28.4]} 55... Ne3 {[%clk 0:00:09.7]} 56. Bd3 {[%clk 0:00:27.4]} 56...
Kg7 {[%clk 0:00:11]} 57. a4 {[%clk 0:00:26.7]} 57... Kf7 {[%clk 0:00:12.5]} 58.
Rd6 {[%clk 0:00:26.9]} 58... Ng2 {[%clk 0:00:12.5]} 59. a5 {[%clk 0:00:27.4]}
59... Nf4 {[%clk 0:00:12.4]} 60. Bxg6+ {[%clk 0:00:26.9]} 60... Nxg6 {[%clk
0:00:10.5]} 61. b4 {[%clk 0:00:26.5]} 61... Ra3 {[%clk 0:00:10]} 62. a6 {[%clk
0:00:27.3]} 62... Ne7 {[%clk 0:00:11.5]} 63. b5 {[%clk 0:00:26.2]} 63... Ke8
{[%clk 0:00:13]} 64. Rh6 {[%clk 0:00:24.9]} 64... Kd7 {[%clk 0:00:13.8]} 65.
Rxh5 {[%clk 0:00:24.8]} 65... Rc3+ {[%clk 0:00:10.2]} 66. Kb6 {[%clk 0:00:24.7]}
66... Nc8+ {[%clk 0:00:11.1]} 67. Kb7 {[%clk 0:00:24.3]} 67... Rc7+ {[%clk
0:00:12.3]} 68. Kb8 {[%clk 0:00:25.4]} 68... Rc1 {[%clk 0:00:04.6]} 69. Rh7+
{[%clk 0:00:25.1]} 69... Kd8 {[%clk 0:00:05.3]} 70. Rh8+ {[%clk 0:00:25.9]}
70... Kd7 {[%clk 0:00:06.7]} 71. a7 {[%clk 0:00:24.9]} 71... Nb6 {[%clk
0:00:05.7]} 72. Kb7 {[%clk 0:00:24.2]} 1-0

[Event "*** Titled Tuesday Blitz"]
[Site "Chess.com"]
[Date "2018.07.03"]
[Round "1"]
[White "morphy1984"]
[Black "1b31-0"]
[Result "1/2-1/2"]
[WhiteElo "2519"]
[BlackElo "2188"]
[TimeControl "180+2"]
[EndTime "13:11:25 PDT"]
[Termination "Game drawn by repetition"]

1. e4 {[%clk 0:03:00.9]} 1... g6 {[%clk 0:03:00.9]} 2. d4 {[%clk 0:03:01]} 2...
Bg7 {[%clk 0:03:02]} 3. Nf3 {[%clk 0:03:01.4]} 3... d6 {[%clk 0:03:02.6]} 4. Bc4
{[%clk 0:03:00.2]} 4... a6 {[%clk 0:03:02.1]} 5. O-O {[%clk 0:02:59.9]} 5... e6
{[%clk 0:03:02.3]} 6. Re1 {[%clk 0:02:56]} 6... b6 {[%clk 0:03:01.4]} 7. c3
{[%clk 0:02:55.5]} 7... Nd7 {[%clk 0:03:01.4]} 8. Nbd2 {[%clk 0:02:52.3]} 8...
Ne7 {[%clk 0:03:01.6]} 9. Nf1 {[%clk 0:02:52.5]} 9... Bb7 {[%clk 0:03:00.1]} 10.
Ng3 {[%clk 0:02:52.7]} 10... h6 {[%clk 0:03:00.8]} 11. h3 {[%clk 0:02:49.1]}
11... O-O {[%clk 0:03:00.8]} 12. a4 {[%clk 0:02:39.8]} 12... Kh7 {[%clk
0:02:59.9]} 13. Bd3 {[%clk 0:02:38.1]} 13... e5 {[%clk 0:02:59.5]} 14. Be3
{[%clk 0:02:34.9]} 14... g5 {[%clk 0:02:51.8]} 15. Nh5 {[%clk 0:02:07.7]} 15...
Ng6 {[%clk 0:02:49.7]} 16. Nh2 {[%clk 0:02:01]} 16... Nf4 {[%clk 0:02:44.7]} 17.
Nxg7 {[%clk 0:01:59.6]} 17... Kxg7 {[%clk 0:02:43.6]} 18. Bf1 {[%clk 0:01:56.4]}
18... Nf6 {[%clk 0:02:33.1]} 19. d5 {[%clk 0:01:49.8]} 19... Bc8 {[%clk
0:02:27.1]} 20. c4 {[%clk 0:01:43.4]} 20... a5 {[%clk 0:02:25.9]} 21. Ra3 {[%clk
0:01:43.4]} 21... Kh7 {[%clk 0:02:21.8]} 22. Ng4 {[%clk 0:01:38.8]} 22... Bxg4
{[%clk 0:02:14.3]} 23. hxg4 {[%clk 0:01:39.3]} 23... Qd7 {[%clk 0:02:14.7]} 24.
f3 {[%clk 0:01:39.5]} 24... Kg6 {[%clk 0:02:12.9]} 25. g3 {[%clk 0:01:28.3]}
25... Rh8 {[%clk 0:02:01.6]} 26. gxf4 {[%clk 0:01:27.9]} 26... gxf4 {[%clk
0:02:03.5]} 27. Bf2 {[%clk 0:01:15.1]} 27... h5 {[%clk 0:02:04]} 28. g5 {[%clk
0:01:03]} 28... Kxg5 {[%clk 0:02:02.4]} 29. Bg2 {[%clk 0:00:54.3]} 29... Rag8
{[%clk 0:01:55.3]} 30. Kf1 {[%clk 0:00:54.9]} 30... Kh6 {[%clk 0:01:54.9]} 31.
Bh1 {[%clk 0:00:53.3]} 31... Qh3+ {[%clk 0:01:49.4]} 32. Ke2 {[%clk 0:00:53]}
32... Rh7 {[%clk 0:01:42.4]} 33. Ra1 {[%clk 0:00:35.6]} 33... Rhg7 {[%clk
0:01:34.7]} 34. Qd3 {[%clk 0:00:34.7]} 34... Qh2 {[%clk 0:01:32.3]} 35. Rf1
{[%clk 0:00:30.1]} 35... h4 {[%clk 0:01:30]} 36. Qc3 {[%clk 0:00:21.4]} 36...
Nh5 {[%clk 0:01:27.2]} 37. Kd3 {[%clk 0:00:18.2]} 37... Ng3 {[%clk 0:01:26.3]}
38. Bxg3 {[%clk 0:00:18.9]} 38... hxg3 {[%clk 0:01:17.2]} 39. Rg1 {[%clk
0:00:16.9]} 39... Kg6 {[%clk 0:01:13.8]} 40. Bg2 {[%clk 0:00:17.4]} 40... Kf6
{[%clk 0:01:14.4]} 41. Qd2 {[%clk 0:00:17.9]} 41... Qh5 {[%clk 0:01:12.4]} 42.
Rh1 {[%clk 0:00:18.6]} 42... Qg6 {[%clk 0:01:13.2]} 43. Rh4 {[%clk 0:00:18.5]}
43... Rh7 {[%clk 0:01:12.1]} 44. Rah1 {[%clk 0:00:19.5]} 44... Rgh8 {[%clk
0:01:12.7]} 45. Rxh7 {[%clk 0:00:18.7]} 45... Rxh7 {[%clk 0:01:14.6]} 46. Rxh7
{[%clk 0:00:19.6]} 46... Qxh7 {[%clk 0:01:16.5]} 47. Qe1 {[%clk 0:00:19.7]}
47... Qh2 {[%clk 0:01:16.9]} 48. Qh1 {[%clk 0:00:20.5]} 48... Qxh1 {[%clk
0:01:00.1]} 49. Bxh1 {[%clk 0:00:21.1]} 49... Kg5 {[%clk 0:01:02]} 50. Bg2
{[%clk 0:00:22.1]} 50... f5 {[%clk 0:01:00.8]} 51. exf5 {[%clk 0:00:21]} 51...
Kxf5 {[%clk 0:01:02]} 52. Bh3+ {[%clk 0:00:20.4]} 52... Kg5 {[%clk 0:01:03.1]}
53. Ke4 {[%clk 0:00:19.6]} 53... Kh4 {[%clk 0:01:04.3]} 54. Bg2 {[%clk
0:00:20.3]} 54... Kg5 {[%clk 0:01:06.2]} 55. b3 {[%clk 0:00:20.5]} 55... Kf6
{[%clk 0:01:04.9]} 56. Kd3 {[%clk 0:00:19.5]} 56... Kf5 {[%clk 0:01:05.3]} 57.
Bh3+ {[%clk 0:00:20.2]} 57... Kg5 {[%clk 0:01:05.9]} 58. Ke2 {[%clk 0:00:21]}
58... Kh4 {[%clk 0:01:06.3]} 59. Bg2 {[%clk 0:00:20.8]} 59... Kg5 {[%clk
0:01:08.2]} 60. Kd3 {[%clk 0:00:20.7]} 60... Kf5 {[%clk 0:01:08.4]} 61. Bh3+
{[%clk 0:00:20.9]} 61... Kg5 {[%clk 0:01:09.7]} 62. Ke2 {[%clk 0:00:22.4]} 62...
Kh4 {[%clk 0:01:09.2]} 63. Bf1 {[%clk 0:00:22.9]} 63... Kg5 {[%clk 0:01:10.6]}
64. Bh3 {[%clk 0:00:22.1]} 64... Kh4 {[%clk 0:01:11.5]} 65. Bd7 {[%clk
0:00:18.7]} 65... Kg5 {[%clk 0:01:11.4]} 66. Kf1 {[%clk 0:00:18.4]} 66... Kf6
{[%clk 0:01:08.8]} 67. Kg2 {[%clk 0:00:18.9]} 67... Ke7 {[%clk 0:01:10.3]} 68.
Bf5 {[%clk 0:00:19.6]} 68... Kf6 {[%clk 0:01:11.4]} 69. Bd3 {[%clk 0:00:20.9]}
69... Kg5 {[%clk 0:01:11.9]} 70. Kh3 {[%clk 0:00:22.3]} 70... Kh5 {[%clk
0:01:13.1]} 71. Be4 {[%clk 0:00:21.5]} 71... Kg5 {[%clk 0:01:13.7]} 72. Bh7
{[%clk 0:00:22.4]} 72... Kh6 {[%clk 0:01:14.6]} 73. Bc2 {[%clk 0:00:20.8]} 73...
Kg5 {[%clk 0:01:15.8]} 74. Kg2 {[%clk 0:00:17.7]} 74... Kf6 {[%clk 0:01:14.1]}
75. Bd3 {[%clk 0:00:14.1]} 75... Kg5 {[%clk 0:01:15]} 76. Kh3 {[%clk 0:00:14]}
76... Kh5 {[%clk 0:01:15.2]} 77. Bf5 {[%clk 0:00:13.4]} 77... Kg5 {[%clk
0:01:15.9]} 78. Be4 {[%clk 0:00:14]} 78... Kh5 {[%clk 0:01:16.7]} 79. Bd3 {[%clk
0:00:12.4]} 79... Kg5 {[%clk 0:01:17.5]} 80. Kg2 {[%clk 0:00:12.1]} 80... Kh4
{[%clk 0:01:18.4]} 81. Be2 {[%clk 0:00:11.5]} 81... Kg5 {[%clk 0:01:19.4]} 82.
Bd3 {[%clk 0:00:12.5]} 82... Kf6 {[%clk 0:01:17.2]} 83. Kh3 {[%clk 0:00:13]}
83... Kg5 {[%clk 0:01:18.1]} 84. Kg2 {[%clk 0:00:13.9]} 84... Kh4 {[%clk
0:01:19.4]} 85. Be4 {[%clk 0:00:13.8]} 85... Kg5 {[%clk 0:01:20.6]} 86. Bd3
{[%clk 0:00:11.1]} 86... Kh5 {[%clk 0:01:20.9]} 87. Kf1 {[%clk 0:00:11.8]} 87...
Kh4 {[%clk 0:01:21.8]} 88. Kg1 {[%clk 0:00:12.8]} 88... Kh3 {[%clk 0:01:22.1]}
89. Bf1+ {[%clk 0:00:13]} 89... Kh4 {[%clk 0:01:23.9]} 90. Bg2 {[%clk
0:00:14.2]} 90... Kg5 {[%clk 0:01:24.8]} 91. Kf1 {[%clk 0:00:15.8]} 91... Kf5
{[%clk 0:01:25.2]} 92. Ke2 {[%clk 0:00:16.8]} 92... Kf6 {[%clk 0:01:24.1]} 93.
Kd3 {[%clk 0:00:17.5]} 93... Kf5 {[%clk 0:01:24.7]} 94. Ke2 {[%clk 0:00:13.8]}
94... Kg5 {[%clk 0:01:25]} 95. Kd3 {[%clk 0:00:14.5]} 95... Kf5 {[%clk
0:01:26.1]} 96. Bh3+ {[%clk 0:00:15.5]} 96... Kg5 {[%clk 0:01:27.2]} 97. Ke4
{[%clk 0:00:16.2]} 97... Kh4 {[%clk 0:01:28.3]} 98. Bg2 {[%clk 0:00:16.7]} 98...
Kg5 {[%clk 0:01:29.9]} 99. Kd3 {[%clk 0:00:12]} 99... Kf5 {[%clk 0:01:30.9]}
1/2-1/2

[Event "*** Titled Tuesday Blitz"]
[Site "Chess.com"]
[Date "2018.07.03"]
[Round "1"]
[White "Kurai"]
[Black "Dr_Mortimer"]
[Result "0-1"]
[WhiteElo "2427"]
[BlackElo "2820"]
[TimeControl "180+2"]
[EndTime "13:11:39 PDT"]
[Termination "Dr_Mortimer won by resignation"]

1. e4 {[%clk 0:03:00.6]} 1... c5 {[%clk 0:03:00.5]} 2. Nf3 {[%clk 0:03:01.4]}
2... e6 {[%clk 0:03:01.8]} 3. d4 {[%clk 0:03:02.4]} 3... cxd4 {[%clk 0:03:03.7]}
4. Nxd4 {[%clk 0:03:04]} 4... Nc6 {[%clk 0:03:05.6]} 5. Nb5 {[%clk 0:02:58]}
5... d6 {[%clk 0:03:06.1]} 6. c4 {[%clk 0:02:58.8]} 6... Nf6 {[%clk 0:03:06.1]}
7. N1c3 {[%clk 0:02:59]} 7... a6 {[%clk 0:03:07.5]} 8. Na3 {[%clk 0:03:00]} 8...
Be7 {[%clk 0:03:09.4]} 9. Be2 {[%clk 0:03:01.2]} 9... O-O {[%clk 0:03:11.3]} 10.
O-O {[%clk 0:03:02.4]} 10... b6 {[%clk 0:03:12.5]} 11. Be3 {[%clk 0:03:00.6]}
11... Bb7 {[%clk 0:03:13.4]} 12. Rc1 {[%clk 0:02:58.6]} 12... Ne5 {[%clk
0:03:12.3]} 13. f4 {[%clk 0:02:55.5]} 13... Ned7 {[%clk 0:03:11.9]} 14. Bf3
{[%clk 0:02:56.3]} 14... Qc7 {[%clk 0:03:09.9]} 15. Nab1 {[%clk 0:02:51.7]}
15... Rac8 {[%clk 0:03:07.4]} 16. Nd2 {[%clk 0:02:51.5]} 16... Qb8 {[%clk
0:03:05.8]} 17. Qe2 {[%clk 0:02:49.9]} 17... Rfe8 {[%clk 0:03:04.4]} 18. g4
{[%clk 0:02:33.2]} 18... Nc5 {[%clk 0:02:43.9]} 19. g5 {[%clk 0:02:30.5]} 19...
Nfxe4 {[%clk 0:01:54.9]} 20. Ndxe4 {[%clk 0:02:24.7]} 20... d5 {[%clk
0:01:56.1]} 21. Nxc5 {[%clk 0:02:00.5]} 21... Bxc5 {[%clk 0:01:56.5]} 22. Bxc5
{[%clk 0:01:58.1]} 22... Rxc5 {[%clk 0:01:43.6]} 23. cxd5 {[%clk 0:01:51.6]}
23... Qxf4 {[%clk 0:01:44]} 24. Qg2 {[%clk 0:01:35.6]} 24... exd5 {[%clk
0:01:40.4]} 25. Rce1 {[%clk 0:01:19.6]} 25... Rxe1 {[%clk 0:01:19]} 26. Rxe1
{[%clk 0:01:21.5]} 26... g6 {[%clk 0:01:20.1]} 27. Qg3 {[%clk 0:00:54.9]} 27...
Qd4+ {[%clk 0:01:18.6]} 28. Qf2 {[%clk 0:00:52.5]} 28... Qf4 {[%clk 0:00:40]}
29. Qe3 {[%clk 0:00:52.9]} 29... Qh4 {[%clk 0:00:41]} 30. Qe8+ {[%clk
0:00:26.9]} 30... Kg7 {[%clk 0:00:42.1]} 31. Qe5+ {[%clk 0:00:28]} 31... Kg8
{[%clk 0:00:43.5]} 32. Qb8+ {[%clk 0:00:11]} 32... Kg7 {[%clk 0:00:44.7]} 33.
Re8 {[%clk 0:00:11.8]} 33... Qxg5+ {[%clk 0:00:44.6]} 34. Kf1 {[%clk 0:00:12.7]}
34... Qf5 {[%clk 0:00:09.4]} 35. Rg8+ {[%clk 0:00:13.2]} 35... Kh6 {[%clk
0:00:10.6]} 36. Qf8+ {[%clk 0:00:12.7]} 36... Kg5 {[%clk 0:00:10.5]} 37. Qe7+
{[%clk 0:00:14.1]} 37... Qf6 {[%clk 0:00:06.9]} 38. Qe3+ {[%clk 0:00:14.6]}
38... Qf4 {[%clk 0:00:06.4]} 39. Qe7+ {[%clk 0:00:15.5]} 39... f6 {[%clk
0:00:06.3]} 40. Kg2 {[%clk 0:00:15]} 40... d4 {[%clk 0:00:04.2]} 41. Ne4+ {[%clk
0:00:06.9]} 41... Bxe4 {[%clk 0:00:04.7]} 42. Qxe4 {[%clk 0:00:07.7]} 42... Qxe4
{[%clk 0:00:03]} 43. Bxe4 {[%clk 0:00:09.6]} 43... f5 {[%clk 0:00:04.7]} 44. Bd3
{[%clk 0:00:10.6]} 44... Rc1 {[%clk 0:00:05.4]} 45. Rb8 {[%clk 0:00:10.9]} 45...
Rd1 {[%clk 0:00:06]} 46. Bxa6 {[%clk 0:00:11.9]} 46... Rd2+ {[%clk 0:00:07.1]}
47. Kg3 {[%clk 0:00:12.8]} 47... Rxb2 {[%clk 0:00:09]} 48. h4+ {[%clk
0:00:13.4]} 48... Kf6 {[%clk 0:00:08.7]} 49. Bc4 {[%clk 0:00:15.3]} 49... Ke5
{[%clk 0:00:07.4]} 50. Rd8 {[%clk 0:00:15.9]} 50... Rc2 {[%clk 0:00:07]} 51. Bb3
{[%clk 0:00:10.3]} 51... Rc3+ {[%clk 0:00:07.9]} 52. Kf2 {[%clk 0:00:11.8]}
52... Rh3 {[%clk 0:00:07.5]} 53. Re8+ {[%clk 0:00:09.2]} 53... Kf4 {[%clk
0:00:08.8]} 54. Rd8 {[%clk 0:00:10.1]} 54... Rh2+ {[%clk 0:00:09.7]} 55. Kg1
{[%clk 0:00:10.2]} 55... Rxh4 {[%clk 0:00:09.9]} 56. Rxd4+ {[%clk 0:00:11]}
56... Kg5 {[%clk 0:00:11.3]} 57. Rd6 {[%clk 0:00:10.5]} 57... Rb4 {[%clk
0:00:10.4]} 58. Kg2 {[%clk 0:00:12]} 58... Kf4 {[%clk 0:00:04.7]} 59. Rd3 {[%clk
0:00:13.1]} 59... h5 {[%clk 0:00:04.6]} 60. Rd6 {[%clk 0:00:13.1]} 60... g5
{[%clk 0:00:05]} 61. Kf2 {[%clk 0:00:14.7]} 61... g4 {[%clk 0:00:05.6]} 62. Rh6
{[%clk 0:00:16.1]} 62... Kg5 {[%clk 0:00:06]} 63. Rh8 {[%clk 0:00:17.3]} 63...
h4 {[%clk 0:00:07.1]} 64. Be6 {[%clk 0:00:16.2]} 64... Re4 {[%clk 0:00:06.2]}
65. Bc8 {[%clk 0:00:16.2]} 65... Kf4 {[%clk 0:00:04.1]} 66. Rf8 {[%clk
0:00:16.8]} 66... Re5 {[%clk 0:00:04.9]} 67. Ba6 {[%clk 0:00:11.5]} 67... h3
{[%clk 0:00:03.8]} 68. Rg8 {[%clk 0:00:12.5]} 68... Rc5 {[%clk 0:00:03.9]} 69.
Bd3 {[%clk 0:00:13.2]} 69... Rd5 {[%clk 0:00:04.7]} 70. Be2 {[%clk 0:00:10.7]}
70... Rd2 {[%clk 0:00:04.4]} 71. Ke1 {[%clk 0:00:12]} 71... Rxa2 {[%clk
0:00:04.9]} 72. Rb8 {[%clk 0:00:13.9]} 72... Rb2 {[%clk 0:00:05.6]} 73. Rd8
{[%clk 0:00:13.5]} 73... h2 {[%clk 0:00:06.2]} 74. Rh8 {[%clk 0:00:14.5]} 74...
g3 {[%clk 0:00:07.2]} 75. Kf1 {[%clk 0:00:04.7]} 75... Rxe2 {[%clk 0:00:06.5]}
76. Kxe2 {[%clk 0:00:03.4]} 76... g2 {[%clk 0:00:07.8]} 77. Rxh2 {[%clk
0:00:03.2]} 77... g1=Q {[%clk 0:00:09]} 78. Rf2+ {[%clk 0:00:04.7]} 78... Qxf2+
{[%clk 0:00:09.9]} 79. Kxf2 {[%clk 0:00:06.6]} 79... Ke4 {[%clk 0:00:11.3]} 80.
Ke2 {[%clk 0:00:08]} 80... f4 {[%clk 0:00:13.2]} 0-1